fUST/lending_fUST_20240118
["ID","MTS","AMOUNT","RATE_DAILY","PERIOD"]
[311934428,1705509041052,-500.0,0.00021917,2]
[311934429,1705509041061,-1153.38,0.00021917,2]
[311934430,1705509041071,-500.0,0.00021917,2]
[311934431,1705509041081,-506.24672197,0.00021917,2]
[311934432,1705509041090,-513.74,0.00021917,2]
[311934433,1705509041100,-500.0,0.00021917,2]
[311934434,1705509041109,-225.46911807,0.00021917,2]
[311934435,1705509041119,-21226.28,0.00021917,2]
[311934436,1705509041129,-500.0,0.00021917,2]
[311934437,1705509041138,-501.82591432,0.00021917,2]
[311934438,1705509041149,-500.0,0.00021917,2]
[311934439,1705509041159,-5936.43,0.00021917,2]
[311934440,1705509041169,-500.0,0.00021917,2]
[311934441,1705509041179,-2166.61,0.00021917,2]
[311934442,1705509041188,-500.0,0.00021917,2]
[311934443,1705509041197,-500.0,0.00021917,2]
[311934444,1705509041206,-4088.34,0.00021917,2]
[311934445,1705509041216,-500.0,0.00021917,2]
[311934446,1705509041226,-6594.21,0.00021917,2]
[311934447,1705509041235,-420.60770039,0.00021917,2]
[311934448,1705509041244,-508.09723892,0.00021917,2]
[311934449,1705509041253,-500.0,0.00021917,2]
[311934450,1705509041263,-500.0,0.00021917,2]
[311934451,1705509041272,-500.0,0.00021917,2]
[311934452,1705509041281,-500.0,0.00021917,2]
[311934453,1705509041291,-500.0,0.00021917,2]
[311934454,1705509041301,-2106.16,0.00021917,2]
[311934455,1705509041311,-500.0,0.00021917,2]
[311934456,1705509041320,-500.0,0.00021917,2]
[311934457,1705509041330,-500.0,0.00021917,2]
[311934458,1705509041340,-500.0,0.00021917,2]
[311934459,1705509041349,-394.29707904,0.00021917,2]
[311934460,1705509041358,-166.666666,0.00021918,2]
[311934461,1705509041368,-222.714766,0.00021918,2]
[311934462,1705509041377,-500.0,0.00021944,2]
[311934463,1705509041387,-500.0,0.00021944,2]
[311934464,1705509041400,-500.0,0.00021944,2]
[311934465,1705509041409,-50000.0,0.00021945,2]
[311934466,1705509041418,-54319.33770339,0.00021945,2]
[311934467,1705509041427,-4022.23454679,0.00021945,2]
[311934468,1705509041436,-35000.0,0.00021945,2]
[311934469,1705509041446,-50000.0,0.00021945,2]
[311934470,1705509041455,-50000.0,0.00021945,2]
[311934471,1705509041466,-53391.43449152,0.00021945,2]
[311934472,1705509041476,-508.19950433,0.00021952,2]
[311934473,1705509041486,-649.18939419,0.00021965,2]
[311934474,1705509041498,-293.1976279,0.00022,4]
[311934475,1705509041575,-425.53656097,0.00022,2]
[311934476,1705509041585,-3955.54830897,0.00022,2]
[311934477,1705509041594,-154.95351395,0.00022,2]
[311934478,1705509041628,-500.0,0.00022053,2]
[311934479,1705509041637,-500.0,0.00022053,2]
[311934480,1705509041648,-410.92807605,0.00022053,2]
[311934481,1705509041658,-500.0,0.00022054,2]
[311934482,1705509041667,-500.0,0.00022054,2]
[311934483,1705509041676,-500.0,0.00022054,2]
[311934484,1705509041686,-500.0,0.00022054,2]
[311934485,1705509041695,-500.0,0.00022054,2]
[311934486,1705509041704,-500.0,0.00022054,2]
[311934487,1705509041713,-500.0,0.00022054,2]
[311934488,1705509041722,-500.0,0.00022054,2]
[311934489,1705509041731,-510.39,0.00022054,2]
[311934490,1705509041740,-500.0,0.00022054,2]
[311934491,1705509041750,-383.96915112,0.00022054,2]
[311934492,1705509041759,-185.024086,0.00022054,2]
[311934493,1705509041768,-789.11,0.00022054,2]
[311934494,1705509041779,-500.0,0.00022054,2]
[311934495,1705509041789,-500.0,0.00022054,2]
[311934496,1705509041798,-500.0,0.00022054,2]
[311934497,1705509041808,-735.57,0.00022054,2]
[311934498,1705509041817,-500.0,0.00022054,2]
[311934499,1705509041826,-2046.54,0.00022054,2]
[311934500,1705509041835,-500.0,0.00022054,2]
[311934501,1705509041844,-500.0,0.00022054,2]
[311934502,1705509041853,-500.0,0.00022054,2]
[311934503,1705509041862,-395.89549653,0.00022054,2]
[311934504,1705509041871,-610.97756718,0.00022054,2]
[311934505,1705509041881,-500.0,0.00022054,2]
[311934506,1705509041891,-500.0,0.00022054,2]
[311934507,1705509041900,-500.0,0.00022054,2]
[311934508,1705509041909,-500.0,0.00022054,2]
[311934509,1705509041918,-500.0,0.00022054,2]
[311934510,1705509041926,-500.0,0.00022054,2]
[311934511,1705509041936,-500.0,0.00022054,2]
[311934512,1705509041945,-500.0,0.00022054,2]
[311934513,1705509041954,-500.0,0.00022054,2]
[311934514,1705509041964,-837.23,0.00022054,2]
[311934515,1705509041973,-500.0,0.00022054,2]
[311934516,1705509041983,-239.57751721,0.00022054,2]
[311934517,1705509041992,-500.0,0.00022054,2]
[311934518,1705509042002,-500.0,0.00022054,2]
[311934519,1705509042011,-375.57578081,0.00022054,2]
[311934520,1705509042020,-645.12,0.00022054,2]
[311934521,1705509042029,-500.0,0.00022054,2]
[311934522,1705509042038,-500.0,0.00022054,2]
[311934523,1705509042047,-1092.91,0.00022054,2]
[311934524,1705509042055,-500.0,0.00022054,2]
[311934525,1705509042064,-500.0,0.00022054,2]
[311934526,1705509042074,-500.0,0.00022054,2]
[311934527,1705509042083,-500.0,0.00022054,2]
[311934528,1705509042092,-580.27,0.00022054,2]
[311934529,1705509042102,-500.0,0.00022054,2]
[311934530,1705509042110,-710.3,0.00022054,2]
[311934531,1705509042120,-346.01787817,0.00022054,2]
[311934532,1705509042129,-500.0,0.00022054,2]
[311934534,1705509042138,-766.35,0.00022054,2]
[311934536,1705509042148,-500.0,0.00022054,2]
[311934538,1705509042157,-500.0,0.00022054,2]
[311934540,1705509042166,-619.60676546,0.00022054,2]
[311934542,1705509042175,-613.98,0.00022054,2]
[311934543,1705509042184,-500.0,0.00022054,2]
[311934545,1705509042193,-1162.64,0.00022054,2]
[311934547,1705509042202,-4979.13,0.00022054,2]
[311934550,1705509042211,-500.0,0.00022054,2]
[311934552,1705509042220,-669.33,0.00022054,2]
[311934554,1705509042229,-1341.36,0.00022054,2]
[311934557,1705509042238,-500.0,0.00022054,2]
[311934558,1705509042247,-500.0,0.00022054,2]
[311934559,1705509042257,-500.0,0.00022054,2]
[311934560,1705509042266,-989.6,0.00022054,2]
[311934562,1705509042274,-502.10441126,0.00022054,2]
[311934564,1705509042284,-500.0,0.00022054,2]
[311934565,1705509042293,-500.0,0.00022054,2]
[311934567,1705509042302,-312.25901407,0.00022054,2]
[311934568,1705509042312,-500.0,0.00022054,2]
[311934569,1705509042322,-500.0,0.00022054,2]
[311934570,1705509042331,-500.0,0.00022054,2]
[311934571,1705509042339,-1585.19,0.00022054,2]
[311934573,1705509042348,-500.0,0.00022054,2]
[311934574,1705509042357,-993.66,0.00022054,2]
[311934575,1705509042366,-500.0,0.00022054,2]
[311934576,1705509042376,-500.0,0.00022054,2]
[311934577,1705509042384,-500.0,0.00022054,2]
[311934578,1705509042394,-728.75079694,0.00022054,2]
[311934583,1705509042510,-489.34920306,0.00022054,2]
[311934584,1705509042519,-1183.47,0.00022054,2]
[311934585,1705509042528,-500.0,0.00022054,2]
[311934586,1705509042537,-2509.62238575,0.00022054,2]
[311934587,1705509042550,-8614.05761425,0.00022054,2]
[311934588,1705509042559,-9805.12,0.00022054,2]
[311934589,1705509042569,-622.72,0.00022054,2]
[311934591,1705509042578,-1721.88,0.00022054,2]
[311934593,1705509042588,-500.0,0.00022054,2]
[311934595,1705509042604,-500.0,0.00022054,2]
[311934596,1705509042614,-500.0,0.00022054,2]
[311934598,1705509042624,-500.0,0.00022054,2]
[311934599,1705509042633,-500.0,0.00022054,2]
[311934600,1705509042643,-500.0,0.00022054,2]
[311934601,1705509042652,-500.0,0.00022054,2]
[311934602,1705509042663,-500.0,0.00022054,2]
[311934603,1705509042672,-1000.0,0.00022054,2]
[311934604,1705509042681,-500.0,0.00022054,2]
[311934606,1705509042690,-1539.13,0.00022054,2]
[311934608,1705509042699,-500.0,0.00022054,2]
[311934609,1705509042708,-500.0,0.00022054,2]
[311934610,1705509042717,-500.0,0.00022054,2]
[311934611,1705509042727,-500.0,0.00022054,2]
[311934612,1705509042737,-500.0,0.00022054,2]
[311934613,1705509042745,-500.0,0.00022054,2]
[311934614,1705509042755,-500.0,0.00022054,2]
[311934615,1705509042764,-500.0,0.00022054,2]
[311934616,1705509042774,-1153.38,0.00022054,2]
[311934617,1705509042783,-500.0,0.00022054,2]
[311934618,1705509042792,-513.74,0.00022054,2]
[311934619,1705509042802,-500.0,0.00022054,2]
[311934620,1705509042811,-21226.28,0.00022054,2]
[311934621,1705509042820,-500.0,0.00022054,2]
[311934622,1705509042830,-5936.43,0.00022054,2]
[311934623,1705509042839,-500.0,0.00022054,2]
[311934624,1705509042848,-2166.61,0.00022054,2]
[311934625,1705509042858,-500.0,0.00022054,2]
[311934626,1705509042868,-500.0,0.00022054,2]
[311934627,1705509042877,-4088.34,0.00022054,2]
[311934628,1705509042886,-6594.21,0.00022054,2]
[311934629,1705509042898,-500.0,0.00022054,2]
[311934630,1705509042907,-500.0,0.00022054,2]
[311934631,1705509042917,-405.32457491,0.00022054,2]
[311934632,1705509042926,-500.0,0.00022054,2]
[311934633,1705509042936,-500.0,0.00022054,2]
[311934634,1705509043017,-2106.16,0.00022054,2]
[311934635,1705509043027,-500.0,0.00022054,2]
[311934636,1705509043037,-573.19967507,0.00022054,2]
[311934637,1705509043047,-500.0,0.00022054,2]
[311934638,1705509043057,-154.47214292,0.00022091,2]
[311934639,1705509043066,-500.0,0.0002219,2]
[311934640,1705509043076,-500.0,0.0002219,2]
[311934641,1705509043085,-500.0,0.0002219,2]
[311934642,1705509043095,-500.0,0.00022191,2]
[311934643,1705509043104,-500.0,0.00022191,2]
[311934644,1705509043113,-500.0,0.00022191,2]
[311934645,1705509043123,-500.0,0.00022191,2]
[311934646,1705509043131,-597.57644072,0.00022191,2]
[311934647,1705509043141,-500.0,0.00022191,2]
[311934648,1705509043150,-500.0,0.00022191,2]
[311934649,1705509043159,-500.0,0.00022191,2]
[311934650,1705509043168,-510.39,0.00022191,2]
[311934651,1705509043178,-789.11,0.00022191,2]
[311934652,1705509043187,-500.0,0.00022191,2]
[311934653,1705509043197,-500.0,0.00022191,2]
[311934654,1705509043206,-735.57,0.00022191,2]
[311934655,1705509043215,-530.86729774,0.00022191,2]
[311934656,1705509043391,-500.0,0.00021917,2]
[311934657,1705509043400,-500.0,0.00022054,2]
[311934658,1705509043409,-12.27504162,0.00022191,2]
[311934659,1705509043420,-1503.39766064,0.00022191,2]
[311934660,1705509043429,-500.0,0.00022191,2]
[311934661,1705509043438,-500.0,0.00022191,2]
[311934662,1705509043448,-500.0,0.00022191,2]
[311934663,1705509043457,-500.0,0.00022191,2]
[311934664,1705509043468,-500.0,0.00022191,2]
[311934665,1705509043480,-500.0,0.00022191,2]
[311934666,1705509043489,-500.0,0.00022191,2]
[311934667,1705509043498,-500.0,0.00022191,2]
[311934668,1705509043507,-500.0,0.00022191,2]
[311934669,1705509043518,-500.0,0.00022191,2]
[311934670,1705509043526,-500.0,0.00022191,2]
[311934671,1705509043536,-837.23,0.00022191,2]
[311934672,1705509043544,-500.0,0.00022191,2]
[311934673,1705509043553,-500.0,0.00022191,2]
[311934674,1705509043564,-645.12,0.00022191,2]
[311934675,1705509043574,-500.0,0.00022191,2]
[311934676,1705509043584,-500.0,0.00022191,2]
[311934677,1705509043593,-500.0,0.00022191,2]
[311934678,1705509043604,-1092.91,0.00022191,2]
[311934679,1705509043613,-634.98656732,0.00022191,2]
[311934680,1705509043623,-500.0,0.00022191,2]
[311934681,1705509043632,-500.0,0.00022191,2]
[311934682,1705509043642,-580.27,0.00022191,2]
[311934683,1705509043650,-500.0,0.00022191,2]
[311934684,1705509043660,-710.3,0.00022191,2]
[311934685,1705509043670,-766.35,0.00022191,2]
[311934686,1705509043679,-613.98,0.00022191,2]
[311934687,1705509043688,-500.0,0.00022191,2]
[311934688,1705509043698,-1162.64,0.00022191,2]
[311934689,1705509043707,-1341.36,0.00022191,2]
[311934690,1705509043717,-500.0,0.00022191,2]
[311934691,1705509043726,-669.33,0.00022191,2]
[311934692,1705509043735,-509.97078141,0.00022191,2]
[311934693,1705509043744,-989.6,0.00022191,2]
[311934694,1705509043753,-500.0,0.00022191,2]
[311934695,1705509043762,-500.0,0.00022191,2]
[311934696,1705509043772,-1585.19,0.00022191,2]
[311934697,1705509043782,-6.31188233,0.00022191,2]
[311934698,1705509043849,-265.226858,0.00021916,2]
[311934699,1705509043858,-493.68811767,0.00022191,2]
[311934700,1705509043867,-993.66,0.00022191,2]
[311934701,1705509043877,-500.0,0.00022191,2]
[311934702,1705509043886,-500.0,0.00022191,2]
[311934703,1705509043896,-500.0,0.00022191,2]
[311934704,1705509043906,-1218.1,0.00022191,2]
[311934705,1705509043915,-1183.47,0.00022191,2]
[311934706,1705509043925,-11123.68,0.00022191,2]
[311934707,1705509043934,-9805.12,0.00022191,2]
[311934708,1705509043944,-622.72,0.00022191,2]
[311934709,1705509043953,-1721.88,0.00022191,2]
[311934710,1705509043962,-500.0,0.00022191,2]
[311934711,1705509043971,-500.0,0.00022191,2]
[311934712,1705509043981,-500.0,0.00022191,2]
[311934713,1705509043991,-500.0,0.00022191,2]
[311934714,1705509044000,-500.0,0.00022191,2]
[311934715,1705509044010,-515.61152056,0.00022191,2]
[311934716,1705509044019,-987.33916096,0.00022191,2]
[311934717,1705509044028,-500.0,0.00022191,2]
[311934718,1705509044037,-1539.13,0.00022191,2]
[311934719,1705509044047,-500.0,0.00022191,2]
[311934720,1705509044056,-500.0,0.00022191,2]
[311934721,1705509044065,-500.0,0.00022191,2]
[311934722,1705509044075,-502.3199276,0.00022191,2]
[311934723,1705509044084,-500.0,0.00022191,2]
[311934724,1705509044093,-500.0,0.00022191,2]
[311934725,1705509044102,-500.0,0.00022191,2]
[311934726,1705509044111,-1153.38,0.00022191,2]
[311934727,1705509044121,-513.74,0.00022191,2]
[311934728,1705509044130,-500.0,0.00022191,2]
[311934729,1705509044139,-21226.28,0.00022191,2]
[311934730,1705509044149,-499.73562452,0.00022191,2]
[311934731,1705509044159,-5936.43,0.00022191,2]
[311934732,1705509044168,-500.0,0.00022191,2]
[311934733,1705509044177,-2166.61,0.00022191,2]
[311934734,1705509044186,-500.0,0.00022191,2]
[311934735,1705509044195,-4088.34,0.00022191,2]
[311934736,1705509044204,-6594.21,0.00022191,2]
[311934737,1705509044213,-215.52662606,0.00022191,2]
[311934738,1705509044223,-500.0,0.00022191,2]
[311934739,1705509044232,-2106.16,0.00022191,2]
[311934740,1705509044242,-500.0,0.00022191,2]
[311934741,1705509044252,-500.0,0.00022191,2]
[311934742,1705509044261,-573.70446246,0.00022225,2]
[311934743,1705509044271,-415.32625802,0.00022225,2]
[311934744,1705509044281,-500.0,0.00022225,2]
[311934745,1705509044291,-260.54316135,0.00022225,2]
[311934746,1705509044301,-521.00009772,0.00022225,2]
[311934747,1705509044312,-190.83054351,0.00022225,2]
[311934748,1705509044321,-687.07152181,0.00022226,2]
[311934749,1705509044333,-32768.13522764,0.00022227,2]
[311934750,1705509044344,-500.0,0.00022326,2]
[311934751,1705509044354,-500.0,0.00022327,2]
[311934752,1705509044364,-235.26,0.00022327,2]
[311934753,1705509044374,-500.0,0.00022328,2]
[311934754,1705509044384,-500.0,0.00022328,2]
[311934755,1705509044461,-417.16811537,0.00022328,2]
[311934756,1705509044479,-500.0,0.00022328,2]
[311934757,1705509044494,-500.0,0.00022328,2]
[311934758,1705509044515,-510.39,0.00022328,2]
[311934759,1705509044524,-789.11,0.00022328,2]
[311934760,1705509044535,-500.0,0.00022328,2]
[311934761,1705509044546,-546.15047069,0.00022328,2]
[311934762,1705509044556,-735.57,0.00022328,2]
[311934763,1705509044568,-2046.54,0.00022328,2]
[311934764,1705509044582,-500.0,0.00022328,2]
[311934765,1705509044591,-500.0,0.00022328,2]
[311934766,1705509044601,-500.0,0.00022328,2]
[311934767,1705509044611,-500.0,0.00022328,2]
[311934768,1705509044620,-500.0,0.00022328,2]
[311934769,1705509044629,-500.0,0.00022328,2]
[311934770,1705509044637,-500.0,0.00022328,2]
[311934771,1705509044648,-500.0,0.00022328,2]
[311934772,1705509044659,-837.23,0.00022328,2]
[311934773,1705509044668,-500.0,0.00022328,2]
[311934774,1705509044677,-500.0,0.00022328,2]
[311934775,1705509044686,-645.12,0.00022328,2]
[311934776,1705509044695,-500.0,0.00022328,2]
[311934777,1705509044704,-500.0,0.00022328,2]
[311934778,1705509044714,-1092.91,0.00022328,2]
[311934779,1705509044723,-500.0,0.00022328,2]
[311934780,1705509044733,-500.0,0.00022328,2]
[311934781,1705509044742,-580.27,0.00022328,2]
[311934782,1705509044752,-500.0,0.00022328,2]
[311934783,1705509044762,-710.3,0.00022328,2]
[311934784,1705509044772,-766.35,0.00022328,2]
[311934785,1705509044781,-613.98,0.00022328,2]
[311934786,1705509044791,-1162.64,0.00022328,2]
[311934787,1705509044800,-1341.36,0.00022328,2]
[311934788,1705509044810,-500.0,0.00022328,2]
[311934789,1705509044820,-669.33,0.00022328,2]
[311934790,1705509044829,-989.6,0.00022328,2]
[311934791,1705509044838,-500.0,0.00022328,2]
[311934792,1705509044847,-500.0,0.00022328,2]
[311934793,1705509044857,-1585.19,0.00022328,2]
[311934794,1705509044866,-993.66,0.00022328,2]
[311934795,1705509044875,-500.0,0.00022328,2]
[311934796,1705509044884,-500.0,0.00022328,2]
[311934797,1705509044894,-562.42328783,0.00022328,2]
[311934798,1705509044903,-1218.1,0.00022328,2]
[311934799,1705509044913,-1183.47,0.00022328,2]
[311934800,1705509044922,-11123.68,0.00022328,2]
[311934801,1705509044932,-9805.12,0.00022328,2]
[311934802,1705509044942,-622.72,0.00022328,2]
[311934803,1705509044952,-1721.88,0.00022328,2]
[311934804,1705509044961,-500.0,0.00022328,2]
[311934805,1705509044971,-500.0,0.00022328,2]
[311934806,1705509044981,-500.0,0.00022328,2]
[311934807,1705509044990,-500.0,0.00022328,2]
[311934808,1705509044999,-500.0,0.00022328,2]
[311934809,1705509045009,-1539.13,0.00022328,2]
[311934810,1705509045019,-500.0,0.00022328,2]
[311934811,1705509045028,-392.27,0.00022328,2]
[311934812,1705509045038,-500.0,0.00022328,2]
[311934813,1705509045048,-500.0,0.00022328,2]
[311934814,1705509045058,-500.0,0.00022328,2]
[311934815,1705509045067,-1153.38,0.00022328,2]
[311934816,1705509045077,-513.74,0.00022328,2]
[311934817,1705509045086,-500.0,0.00022328,2]
[311934818,1705509045096,-21226.28,0.00022328,2]
[311934819,1705509045105,-5936.43,0.00022328,2]
[311934820,1705509045115,-500.0,0.00022328,2]
[311934821,1705509045125,-2166.61,0.00022328,2]
[311934822,1705509045134,-500.0,0.00022328,2]
[311934823,1705509045144,-4088.34,0.00022328,2]
[311934824,1705509045154,-6594.21,0.00022328,2]
[311934825,1705509045164,-500.0,0.00022328,2]
[311934827,1705509045175,-2106.16,0.00022328,2]
[311934829,1705509045184,-500.0,0.00022328,2]
[311934831,1705509045193,-500.0,0.00022328,2]
[311934833,1705509045203,-166.666666,0.00022431,2]
[311934835,1705509045212,-200.0,0.00022441,7]
[311934837,1705509045221,-1409.939102,0.00022465,2]
[311934839,1705509045230,-151.0,0.00022465,2]
[311934841,1705509045239,-421.507991,0.00022465,2]
[311934843,1705509045248,-421.507991,0.00022465,2]
[311934846,1705509045257,-500.0,0.00022465,2]
[311934848,1705509045267,-500.0,0.00022465,2]
[311934850,1705509045276,-269.39087321,0.00022465,2]
[311934852,1705509045285,-500.0,0.00022465,2]
[311934854,1705509045294,-510.39,0.00022465,2]
[311934855,1705509045303,-789.11,0.00022465,2]
[311934856,1705509045313,-735.57,0.00022465,2]
[311934857,1705509045322,-2046.54,0.00022465,2]
[311934858,1705509045331,-500.0,0.00022465,2]
[311934859,1705509045340,-500.0,0.00022465,2]
[311934861,1705509045350,-500.0,0.00022465,2]
[311934863,1705509045359,-500.0,0.00022465,2]
[311934865,1705509045369,-500.0,0.00022465,2]
[311934867,1705509045378,-500.0,0.00022465,2]
[311934869,1705509045387,-500.0,0.00022465,2]
[311934872,1705509045396,-500.0,0.00022465,2]
[311934874,1705509045405,-837.23,0.00022465,2]
[311934877,1705509045414,-500.0,0.00022465,2]
[311934880,1705509045423,-500.0,0.00022465,2]
[311934881,1705509045432,-645.12,0.00022465,2]
[311934883,1705509045442,-500.0,0.00022465,2]
[311934885,1705509045451,-500.0,0.00022465,2]
[311934887,1705509045460,-1092.91,0.00022465,2]
[311934890,1705509045470,-500.0,0.00022465,2]
[311934892,1705509045481,-500.0,0.00022465,2]
[311934895,1705509045495,-580.27,0.00022465,2]
[311934898,1705509045505,-500.0,0.00022465,2]
[311934900,1705509045515,-710.3,0.00022465,2]
[311934901,1705509045524,-766.35,0.00022465,2]
[311934902,1705509045534,-613.98,0.00022465,2]
[311934904,1705509045543,-1162.64,0.00022465,2]
[311934906,1705509045553,-1341.36,0.00022465,2]
[311934908,1705509045562,-642.92719633,0.00022465,2]
[311934910,1705509045572,-669.33,0.00022465,2]
[311934911,1705509045581,-989.6,0.00022465,2]
[311934912,1705509045590,-592.28485347,0.00022465,2]
[311934913,1705509045599,-500.0,0.00022465,2]
[311934914,1705509045608,-1585.19,0.00022465,2]
[311934915,1705509045618,-993.66,0.00022465,2]
[311934916,1705509045627,-267.89510385,0.00022465,2]
[311934917,1705509045636,-500.0,0.00022465,2]
[311934918,1705509045646,-1183.47,0.00022465,2]
[311934919,1705509045655,-1218.1,0.00022465,2]
[311934920,1705509045664,-11123.68,0.00022465,2]
[311934921,1705509045674,-9805.12,0.00022465,2]
[311934922,1705509045683,-622.72,0.00022465,2]
[311934923,1705509045692,-1721.88,0.00022465,2]
[311934924,1705509045701,-500.0,0.00022465,2]
[311934925,1705509045711,-542.59799575,0.00022465,2]
[311934926,1705509045720,-500.0,0.00022465,2]
[311934927,1705509045730,-500.0,0.00022465,2]
[311934928,1705509045739,-1539.13,0.00022465,2]
[311934929,1705509045748,-500.0,0.00022465,2]
[311934930,1705509045758,-500.0,0.00022465,2]
[311934931,1705509045767,-500.0,0.00022465,2]
[311934934,1705509045838,-500.0,0.00022465,2]
[311934936,1705509045848,-1153.38,0.00022465,2]
[311934937,1705509045857,-513.74,0.00022465,2]
[311934938,1705509045866,-500.0,0.00022465,2]
[311934939,1705509045875,-21226.28,0.00022465,2]
[311934940,1705509045885,-5936.43,0.00022465,2]
[311934941,1705509045896,-500.0,0.00022465,2]
[311934942,1705509045905,-2166.61,0.00022465,2]
[311934943,1705509045915,-500.0,0.00022465,2]
[311934944,1705509045924,-4088.34,0.00022465,2]
[311934945,1705509045934,-6594.21,0.00022465,2]
[311934946,1705509045946,-500.0,0.00022465,2]
[311934947,1705509045955,-2106.16,0.00022465,2]
[311934948,1705509045964,-502.1292157,0.00022465,2]
[311934949,1705509045974,-500.0,0.00022465,2]
[311934950,1705509045983,-198.98525444,0.000226,2]
[311934952,1705509045993,-253.76844676,0.000226,2]
[311934953,1705509046001,-3526.74246409,0.00022601,2]
[311934954,1705509046010,-151.0,0.00022602,2]
[311934955,1705509046019,-151.0,0.00022602,2]
[311934956,1705509046028,-151.0,0.00022602,2]
[311934958,1705509046037,-421.507991,0.00022602,2]
[311934960,1705509046046,-421.507991,0.00022602,2]
[311934962,1705509046055,-200.0,0.00022602,2]
[311934964,1705509046065,-3223.71625917,0.00022602,2]
[311934966,1705509046074,-500.0,0.00022602,2]
[311934968,1705509046083,-500.0,0.00022602,2]
[311934971,1705509046092,-500.0,0.00022602,2]
[311934974,1705509046102,-510.39,0.00022602,2]
[311934977,1705509046111,-789.11,0.00022602,2]
[311934981,1705509046121,-735.57,0.00022602,2]
[311934984,1705509046130,-2046.54,0.00022602,2]
[311934986,1705509046140,-500.0,0.00022602,2]
[311934989,1705509046150,-500.0,0.00022602,2]
[311934992,1705509046160,-500.0,0.00022602,2]
[311934995,1705509046169,-500.0,0.00022602,2]
[311934998,1705509046179,-500.0,0.00022602,2]
[311935001,1705509046187,-500.0,0.00022602,2]
[311935004,1705509046197,-500.0,0.00022602,2]
[311935007,1705509046206,-500.0,0.00022602,2]
[311935011,1705509046216,-837.23,0.00022602,2]
[311935014,1705509046225,-645.12,0.00022602,2]
[311935017,1705509046234,-500.0,0.00022602,2]
[311935019,1705509046243,-1092.91,0.00022602,2]
[311935023,1705509046253,-500.0,0.00022602,2]
[311935024,1705509046262,-500.0,0.00022602,2]
[311935027,1705509046273,-500.0,0.00022602,2]
[311935028,1705509046281,-580.27,0.00022602,2]
[311935031,1705509046291,-500.0,0.00022602,2]
[311935034,1705509046300,-710.3,0.00022602,2]
[311935037,1705509046309,-766.35,0.00022602,2]
[311935039,1705509046318,-613.98,0.00022602,2]
[311935041,1705509046328,-1162.64,0.00022602,2]
[311935043,1705509046337,-1341.36,0.00022602,2]
[311935045,1705509046346,-669.33,0.00022602,2]
[311935047,1705509046355,-989.6,0.00022602,2]
[311935050,1705509046364,-500.0,0.00022602,2]
[311935053,1705509046373,-1585.19,0.00022602,2]
[311935055,1705509046382,-993.66,0.00022602,2]
[311935057,1705509046391,-500.0,0.00022602,2]
[311935059,1705509046401,-1183.47,0.00022602,2]
[311935061,1705509046410,-1218.1,0.00022602,2]
[311935064,1705509046420,-11123.68,0.00022602,2]
[311935066,1705509046429,-9805.12,0.00022602,2]
[311935068,1705509046438,-622.72,0.00022602,2]